Cogmind - Beta 12 @@@ ROGUE MODE // 2023.12.02 @ 01:30:44 Player: Zeia Result: Destroyed by H-66 Slayer with Gauss Rifle Performance ------------- Evolutions (4) 2000 Regions Visited (8) 1600 Robots Destroyed (66) 330 Value Destroyed (2112) 2112 Prototype IDs (2) 40 Alien Tech Used (0) 0 Bonus (412) 412 TOTAL SCORE: 6494 Bonus ------- Follower Combat Kills 447 Friendly Fire -35 Cogmind --------- Core Integrity 0/850 Matter 300/300 Energy 100/100 System Corruption 1% Temperature Cool (0) Movement Rolling (100) Location -6/Extension Parts ------- > --- POWER (1) -------- (None) > --- PROPULSION (6) --- Compact Wheel > --- UTILITY (5) ------ Signal Interpreter > --- WEAPON (3) ------- (None) > --- INVENTORY (5) ---- Micro Nuclear Core Cooling System Small Storage Unit Improved Energy Well Matter Filter Peak State ------------ > --- POWER ------------ Improved Deuterium Engine > --- PROPULSION ------- Light Treads Medium Treads Medium Treads Armored Wheel Armored Huge Wheel > --- UTILITY ---------- Medium Storage Unit Signal Interpreter Advanced Targeting Computer Hardened Medium Armor Plating Improved Shield Generator > --- WEAPON ----------- Minigun Flak Gun Advanced Assault Cannon > --- INVENTORY -------- Light Nuclear Core Improved Deuterium Engine Micro Nuclear Core Angular Momentum Engine Cooling System Small Storage Unit Matter Filter Hardened Medium Armor Plating Minigun Shock Bomb Launcher [Rating: 49] Favorites ----------- Power Improved Deuterium Engine Engine Improved Deuterium Engine Power Core Micro Nuclear Core Propulsion Medium Treads Treads Medium Treads Leg Improved Aluminum Leg Wheel Armored Wheel Flight Unit Improved Flight Unit Utility Medium Storage Unit Device Improved Sensor Array Storage Medium Storage Unit Processor Signal Interpreter Hackware Hacking Suite Protection Hardened Medium Armor Plating Weapon Minigun Energy Gun Small Laser Ballistic Gun Minigun Ballistic Cannon Advanced Assault Cannon Launcher Shock Bomb Launcher Slashing Weapon Scythe Build | -11 -10 -10 -9 -9 -8 -7 -6 -6 ------- Run | Jun Mat Min Mat Min Mat Fac Fac Ext Slots Evolved 8 | . . . 2 . 2 2 2 . Power . | . . . . . . . . . Propulsion 4 | . . . 1 . 2 1 . . Utility 3 | . . . 1 . . 1 1 . Weapon 1 | . . . . . . . 1 . Parts Attached 83 | 6 6 . 17 4 13 15 9 13 Power 8 | 1 1 . 1 . . 2 . 3 Engine 7 | 1 1 . 1 . . 1 . 3 Core 1 | . . . . . . 1 . . Reactor . | . . . . . . . . . Propulsion 31 | 2 2 . 6 1 9 5 1 5 Treads 7 | . . . . . . 2 1 4 Leg 5 | 2 2 . . . 1 . . . Wheel 3 | . . . . . . 2 . 1 Hover . | . . . . . . . . . Flight 16 | . . . 6 1 8 1 . . Utility 20 | 1 3 . 4 1 1 5 5 . Device 5 | . . . 1 1 . 1 2 . Storage 5 | 1 1 . 1 . . 2 . . Processor 4 | . . . . . . 1 3 . Hackware 1 | . . . . . 1 . . . Protection 5 | . 2 . 2 . . 1 . . Artifact . | . . . . . . . . . Weapon 24 | 2 . . 6 2 3 3 3 5 Energy Gun 7 | . . . 4 1 . . . 2 Energy Cannon . | . . . . . . . . . Ballistic Gun 11 | 2 . . 2 1 1 3 1 1 Ballistic Cannon 2 | . . . . . . . 1 1 Launcher 3 | . . . . . 1 . 1 1 Special Weapon . | . . . . . . . . . Impact Weapon . | . . . . . . . . . Slashing Weapon 1 | . . . . . 1 . . . Piercing Weapon . | . . . . . . . . . Special Melee Weapon . | . . . . . . . . . Unidentified Prototypes . | . . . . . . . . . Parts Lost 56 | . . . 12 2 17 1 . 24 Power 6 | . . . 1 . 1 . . 4 Propulsion 23 | . . . 3 1 10 1 . 8 Utility 9 | . . . 3 . 2 . . 4 Weapon 18 | . . . 5 1 4 . . 8 Highest Loss Streak 14 | . . . 10 1 14 1 . 11 To Critical Strikes . | . . . . . . . . . Average Slot Usage (%) 83 | . 99 100 64 86 53 78 90 82 Engine 7 | . 14 14 8 11 3 4 6 5 Treads 10 | . . . . . . 13 17 18 Leg 6 | . 28 28 9 . 3 . . . Wheel 8 | . . . . . . 13 13 11 Flight 4 | . . . 10 31 21 5 . . Device 4 | . . . 2 11 3 5 6 5 Storage 8 | . 14 14 11 11 4 6 6 5 Processor 6 | . . . . . . 5 13 12 Protection 5 | . 13 14 4 . . 5 6 2 Energy Gun 1 | . . . 5 17 3 . . . Ballistic Gun 14 | . 28 28 12 3 4 13 12 10 Ballistic Cannon 2 | . . . . . . . 6 5 Naked Turns 50 | . . . . . 3 47 . . Heaviest Build 45 | 12 24 24 24 14 14 39 45 42 Greatest Support 76 | 20 26 26 26 14 22 56 76 76 Greatest Overweight (x) 7 | . . . 5 1 1 1 . 7 Average Overweight (x) . | . . . . . . . . . Largest Inventory Capacity 10 | 8 10 10 10 8 8 10 10 10 Average Capacity 9 | 7 9 10 9 8 6 9 10 9 Most Carried 10 | 5 10 10 10 8 8 10 10 10 Average Carried 8 | 2 8 10 7 7 5 8 9 9 Final Capacity 10 | 8 10 10 8 8 5 10 10 5 Final Carried 10 | 5 10 10 8 8 5 10 10 5 Class Distribution -------------------- 54% | Mutant 25% | Skirmisher 10% | Tank 7% | Scavenger-Mutant Dominant Class ---------------- Mutant | -10/Materials Mutant | -10/Mines Mutant | -9/Materials Scavenger-Mutant | -9/Mines Mutant | -8/Materials Mutant | -7/Factory Tank | -6/Factory Skirmisher | -6/Extension Resources | -11 -10 -10 -9 -9 -8 -7 -6 -6 ----------- Run | Jun Mat Min Mat Min Mat Fac Fac Ext Matter Collected 2081 | 226 232 66 223 43 68 306 322 595 Remotely . | . . . . . . . . . Salvage Created 2013 | . 275 192 432 130 126 306 192 360 Parts 131 | . 21 13 28 7 18 15 15 14 Haulers Intercepted . | . . . . . . . . . Recyclers Shooed 1 | . . . . . . . . 1 Parts Field Recycled . | . . . . . . . . . Retrieved Matter . | . . . . . . . . . Parts Self-Destructed . | . . . . . . . . . Prevented . | . . . . . . . . . Kills | -11 -10 -10 -9 -9 -8 -7 -6 -6 ------- Run | Jun Mat Min Mat Min Mat Fac Fac Ext Combat Hostiles Destroyed 63 | . 10 5 11 4 8 8 6 11 Guns 51 | . 10 5 11 4 5 8 2 6 Cannons 6 | . . . . . . . 2 4 AOE 6 | . . . . . 3 . 2 1 Classes Destroyed 10 | . 2 1 2 . . . 2 3 Tunneler 1 | . . . . . . . . 1 Operator 1 | . . . 1 . . . . . Watcher 2 | . . . . . . . 2 . Swarmer 28 | . 6 . 3 2 7 4 3 3 Grunt 26 | . 4 4 7 2 1 3 . 5 Sentry 4 | . . . 1 . . 1 1 1 Hunter 1 | . . . . . . . . 1 Programmer 2 | . . . . . . . 2 . Behemoth 1 | . . . . . . . . 1 Assembled 1 | . . 1 . . . . . . Best Kill Streak 6 | . 5 2 6 2 4 4 3 4 Combat Bots Only 6 | . 5 2 6 2 4 4 3 3 Max Kills in Single Turn 3 | . 1 2 1 1 3 1 2 1 Gunslinging 1 | . . 1 . . . . . . Exploded 3 | . . . . . 3 . 2 1 Melee . | . . . . . . . . . Uniques/NPCs Destroyed . | . . . . . . . . . Combat | -11 -10 -10 -9 -9 -8 -7 -6 -6 -------- Run | Jun Mat Min Mat Min Mat Fac Fac Ext Damage Taken 7535 | . 277 146 1236 287 1402 550 208 3429 Core 1849 | . 32 11 304 89 499 54 25 835 Absorbed by Shields 159 | . . . . . . 107 52 . Core Remaining (%) 56 | 100 . 82 . 1 9 92 . . Volleys Fired 215 | . 23 11 49 18 20 22 20 52 Largest 3 | . 2 2 2 2 2 2 3 3 Hottest 142 | . 40 40 85 80 60 53 101 142 Shots Fired 432 | . 46 22 81 34 37 44 50 118 Gun 369 | . 46 22 81 34 36 44 30 76 Cannon 58 | . . . . . . . 19 39 Launcher 5 | . . . . . 1 . 1 3 Special . | . . . . . . . . . Kinetic 345 | . 46 22 59 13 19 44 49 93 Thermal 82 | . . . 22 21 17 . . 22 Explosive 1 | . . . . . 1 . . . Electromagnetic 4 | . . . . . . . 1 3 Robot Hit Streak 16 | . 9 8 11 11 11 9 8 16 Robot Miss Streak 8 | . 3 1 6 4 3 4 4 8 Penetration Max . | . . . . . . . . . Secondary Targets 8 | . 1 1 3 . . 3 . . Max Gunslinging Chain 1 | . 1 1 1 . . 1 . . Shots Hit Robots 307 | . 31 18 50 25 28 36 32 87 Core Hits 173 | . 13 11 25 7 18 19 22 58 Critical Kills 2 | . . . . . . 2 . . Critical Parts Destroyed 1 | . . . . . . . . 1 Critical Strikes 7 | . . . . . 1 2 1 3 Burn 2 | . . . . . . . . 2 Destroy 3 | . . . . . . 2 . 1 Blast 1 | . . . . . . . 1 . Sever 1 | . . . . . 1 . . . Melee Attacks 5 | . . . . . 5 . . . Impact . | . . . . . . . . . Slashing 5 | . . . . . 5 . . . Piercing . | . . . . . . . . . Sneak Attacks . | . . . . . . . . . Combat Hostiles . | . . . . . . . . . Follow-up Attacks . | . . . . . . . . . Damage Inflicted 5882 | . 401 238 578 246 695 623 830 2271 Guns 4029 | . 401 238 578 246 237 623 452 1254 Cannons 1088 | . . . . . . . 314 774 Explosions 626 | . . . . . 319 . 64 243 Melee 125 | . . . . . 125 . . . Ramming 14 | . . . . . 14 . . . Kinetic 4319 | . 401 238 442 86 85 623 766 1678 Thermal 798 | . . . 136 160 152 . . 350 Explosive 319 | . . . . . 319 . . . Electromagnetic 307 | . . . . . . . 64 243 Impact . | . . . . . . . . . Slashing 125 | . . . . . 125 . . . Piercing . | . . . . . . . . . Highest Corruption 2 | . . . . . . 2 1 1 Average Corruption 1 | . . . . . . 1 1 1 Corruption Purged . | . . . . . . . . . Corruption Blocked . | . . . . . . . . . Effects 9 | . . . . . . . 1 8 Message Errors 2 | . . . . . . . . 2 Matter Fused 1 | . . . . . . . . 1 Heat Flow Errors 2 | . . . . . . . 1 1 Energy Discharges 2 | . . . . . . . . 2 Parts Fused 1 | . . . . . . . . 1 Misfires 1 | . . . . . . . . 1 Overload Shots . | . . . . . . . . . Overflow Damage 94 | . . . . . . . 70 24 Projectiles 94 | . . . . . . . 70 24 Explosions . | . . . . . . . . . Melee . | . . . . . . . . . Knockbacks 12 | . . . . . . . 5 7 Impact . | . . . . . . . . . Kinetic 12 | . . . . . . . 5 7 Secondary . | . . . . . . . . . Self-Inflicted Damage 50 | . . . . . 50 . . . Shots 1 | . . . . . 1 . . . Rammed 1 | . . . . . 1 . . . Targets Rammed 1 | . . . . . 1 . . . Kicked . | . . . . . . . . . Crushed . | . . . . . . . . . Highest Temperature 441 | . 8 40 309 10 3 16 191 441 Average Temperature 90 | . 3 11 113 10 3 8 53 130 Received Heat Transfer 1728 | . 108 102 399 126 495 179 12 307 Effects 2 | . . . 1 . . . . 1 Shutdowns 1 | . . . . . . . . 1 Interference 1 | . . . 1 . . . . . Siege Activations . | . . . . . . . . . Robots Corrupted . | . . . . . . . . . Combat Hostiles . | . . . . . . . . . Parts Fried . | . . . . . . . . . Impact Corruptions . | . . . . . . . . . Robots Melted . | . . . . . . . . . Combat Hostiles . | . . . . . . . . . Parts Melted 4 | . . . 3 1 . . . . Heat Transferred 1873 | . . . 334 375 350 . . 814 Parts Sabotaged . | . . . . . . . . . Parts Stolen . | . . . . . . . . . Parts Stripped . | . . . . . . . . . Power Chain Reactions . | . . . . . . . . . Missiles Intercepted . | . . . . . . . . . Alert | -11 -10 -10 -9 -9 -8 -7 -6 -6 ------- Run | Jun Mat Min Mat Min Mat Fac Fac Ext Peak Influence 319 | . 154 160 307 319 301 279 151 224 Initial 124 | . . 60 62 119 124 118 4 37 Average 114 | . 98 114 171 217 227 138 53 88 Maximum Alert Level 1 | . . . 1 1 1 1 . 1 Low Security (%) 83 | 100 100 100 61 44 20 71 100 99 Level 1 16 | . . . 38 55 79 28 . . Level 2 . | . . . . . . . . . Level 3 . | . . . . . . . . . Level 4 . | . . . . . . . . . Level 5 . | . . . . . . . . . High Security . | . . . . . . . . . Max Security . | . . . . . . . . . Squads Dispatched 12 | . 1 . 1 1 1 3 1 4 Investigation 5 | . . . . 1 . 1 . 3 Extermination 2 | . . . . . . 1 1 . Reinforcement 5 | . 1 . 1 . 1 1 . 1 Assault . | . . . . . . . . . Garrison . | . . . . . . . . . Intercept . | . . . . . . . . . Searches Triggered . | . . . . . . . . . Construction Impeded 1 | . . . . . . . . 1 Haulers Reinforced . | . . . . . . . . . Active Scanning Responses . | . . . . . . . . . Cargo Convoy Interrupts . | . . . . . . . . . Stealth | -11 -10 -10 -9 -9 -8 -7 -6 -6 --------- Run | Jun Mat Min Mat Min Mat Fac Fac Ext Distress Signals 3 | . 1 . 1 . . . . 1 Communications Jammed . | . . . . . . . . . Distress Signals . | . . . . . . . . . Times Spotted 126 | . 15 6 18 10 29 10 8 30 Peak Tracking Total 11 | . 6 3 8 4 11 4 3 7 Tactical Retreats 12 | . 1 1 . 2 3 . . 5 Traps | -11 -10 -10 -9 -9 -8 -7 -6 -6 ------- Run | Jun Mat Min Mat Min Mat Fac Fac Ext Traps Triggered 3 | . . . . . . 1 . 2 Indirectly . | . . . . . . . . . Trap Hack Attempts . | . . . . . . . . . Triggered . | . . . . . . . . . Disarmed . | . . . . . . . . . Reprogrammed . | . . . . . . . . . Reused . | . . . . . . . . . Traps Extracted . | . . . . . . . . . Installed . | . . . . . . . . . Triggered . | . . . . . . . . . Machines | -11 -10 -10 -9 -9 -8 -7 -6 -6 ---------- Run | Jun Mat Min Mat Min Mat Fac Fac Ext Machines Disabled 2 | . . . . . 1 . . 1 Max in Single Turn 1 | . . . . . 1 . . 1 Machines Repaired . | . . . . . . . . . Machines Sabotaged . | . . . . . . . . . Overloaded Fab Kills . | . . . . . . . . . Hacking | -11 -10 -10 -9 -9 -8 -7 -6 -6 --------- Run | Jun Mat Min Mat Min Mat Fac Fac Ext Machines Accessed 20 | . 5 . 1 1 . 4 2 7 Terminals 14 | . 4 . 1 . . 2 . 7 Fabricators 4 | . . . . . . 2 2 . Repair Stations . | . . . . . . . . . Recycling Units 1 | . 1 . . . . . . . Scanalyzers . | . . . . . . . . . Garrison Access . | . . . . . . . . . Total Hacks 42 | . 13 . 3 1 . 5 2 18 Successful 18 | . 6 . 1 1 . 2 1 7 Failed 24 | . 7 . 2 . . 3 1 11 Catastrophic 4 | . 1 . . . . 2 1 . Database Lockouts . | . . . . . . . . . Manual 9 | . 4 . 2 . . 2 . 1 Terminals 35 | . 11 . 3 . . 3 . 18 Fabricators 4 | . . . . . . 2 2 . Repair Stations . | . . . . . . . . . Recycling Units 2 | . 2 . . . . . . . Scanalyzers . | . . . . . . . . . Garrison Access . | . . . . . . . . . Terminal Hacks 10 | . 3 . . 1 . . . 6 Record 2 | . 1 . . . . . . 1 Prototype ID Bank 1 | . 1 . . . . . . . Open Door 6 | . . . . 1 . . . 5 Locate Traps 1 | . 1 . . . . . . . Fabricator Hacks 2 | . . . . . . 1 1 . Network Status 2 | . . . . . . 1 1 . Repair Station Hacks . | . . . . . . . . . Recycling Unit Hacks . | . . . . . . . . . Scanalyzer . | . . . . . . . . . Garrison Access Hacks . | . . . . . . . . . Unauthorized Hacks 6 | . 3 . 1 . . 1 . 1 Terminals 6 | . 3 . 1 . . 1 . 1 Botnet 6 | . 3 . 1 . . 1 . 1 Fabricators . | . . . . . . . . . Repair Stations . | . . . . . . . . . Recycling Units . | . . . . . . . . . Scanalyzers . | . . . . . . . . . Garrison Access . | . . . . . . . . . Data Cores Recovered . | . . . . . . . . . Used . | . . . . . . . . . Hacking Detections 16 | . 4 . 1 . . 3 1 7 Full Trace Events 2 | . . . . . . . . 2 Feedback Events . | . . . . . . . . . Feedback Blocked . | . . . . . . . . . Robot Schematics Acquired . | . . . . . . . . . Robots Built . | . . . . . . . . . Authchips . | . . . . . . . . . Time . | . . . . . . . . . Total Robot Build Rating . | . . . . . . . . . Part Schematics Acquired . | . . . . . . . . . Parts Built . | . . . . . . . . . Authchips . | . . . . . . . . . Time . | . . . . . . . . . Total Part Build Rating . | . . . . . . . . . Parts Repaired . | . . . . . . . . . Time . | . . . . . . . . . Parts Recycled . | . . . . . . . . . Recycled Matter . | . . . . . . . . . Retrieved Matter . | . . . . . . . . . Retrieved Components . | . . . . . . . . . Parts Scanalyzed . | . . . . . . . . . Part Schematics Acquired . | . . . . . . . . . Parts Damaged . | . . . . . . . . . Bothacking | -11 -10 -10 -9 -9 -8 -7 -6 -6 ------------ Run | Jun Mat Min Mat Min Mat Fac Fac Ext Used RIF Installer . | . . . . . . . . . Robots Hacked . | . . . . . . . . . Non-combat . | . . . . . . . . . Combat . | . . . . . . . . . Robot Hacks Applied . | . . . . . . . . . Relay Couplers Released . | . . . . . . . . . Fabnet Peak Effective % . | . . . . . . . . . Robots Rewired 6 | . . . . . . . . 6 Allies Hacked . | . . . . . . . . . Hacks Repelled . | . . . . . . . . . Allies | -11 -10 -10 -9 -9 -8 -7 -6 -6 -------- Run | Jun Mat Min Mat Min Mat Fac Fac Ext Total Allies 15 | . . . . . . . . 15 Largest Group 9 | . . . . . . . . 9 Highest-Rated Group 275 | . . . . . . . . 275 Highest-Rated Ally 39 | . . . . . . . . 39 Total Orders . | . . . . . . . . . Ally Attacks 90 | . . . . . . . . 90 Total Damage 1769 | . . . . . . . . 1769 Kills 11 | . . . . . . . . 11 Allies Corrupted . | . . . . . . . . . Allies Melted 1 | . . . . . . . . 1 Intel | -11 -10 -10 -9 -9 -8 -7 -6 -6 ------- Run | Jun Mat Min Mat Min Mat Fac Fac Ext Robot Analysis Total . | . . . . . . . . . Derelict Logs Recovered 2 | . . . . 2 . . . . Drone Launches . | . . . . . . . . . Drone Recoveries . | . . . . . . . . . Exploration | -11 -10 -10 -9 -9 -8 -7 -6 -6 ------------- Run | Jun Mat Min Mat Min Mat Fac Fac Ext Turns Passed 4345 | 72 660 152 321 197 258 927 675 1083 Spaces Moved 2946 | 52 441 98 225 338 270 632 367 523 Core 113 | 5 . . 5 . 8 93 . 2 Treads 1336 | . . . . . . 465 367 504 Legs 695 | 47 441 98 48 . 61 . . . Wheels 30 | . . . . . . 13 . 17 Hover . | . . . . . . . . . Flight 772 | . . . 172 338 201 61 . . Fastest Speed 28 | 50 120 120 34 34 28 40 160 100 Average Speed 115 | 113 120 120 72 35 58 131 160 159 Slowest Speed 400 | 120 120 120 300 107 130 160 160 400 Overloaded Moves . | . . . . . . . . . Propulsion Burnouts . | . . . . . . . . . Robots Hopped 7 | . . . 3 1 3 . . . Cave-ins Triggered . | . . . . . . . . . Exploration Rate (%) 35 | 4 68 34 23 80 30 14 10 58 Regions Visited 8 Branch Regions 3 Pre-discovered Areas 1 | . . . . 1 . . . . Known Exits Taken 1 | . . . . . . . 1 . Unknown Exits Taken 7 | 1 1 1 1 1 1 1 . . Scrap Searched 2 | . . 1 . 1 . . . . Spaces Dug 2 | . . . . . . . 2 . Terrain Destroyed 14 | . . . . . 7 . 3 4 Melee . | . . . . . . . . . Projectile 7 | . . . . . . . 3 4 AOE 7 | . . . . . 7 . . . Terrain Rammed . | . . . . . . . . . Walls Destroyed . | . . . . . . . . . Machines Disabled . | . . . . . . . . . Actions | -11 -10 -10 -9 -9 -8 -7 -6 -6 --------- Run | Jun Mat Min Mat Min Mat Fac Fac Ext Total 3494 | 62 530 112 301 385 325 688 417 674 Wait 153 | . 42 2 8 16 16 12 15 42 Move 2926 | 51 440 97 218 335 265 631 366 523 Hop 6 | . . . 3 1 2 . . . Pick Up 34 | 5 10 1 2 5 1 6 3 1 Fast Attach 47 | 6 1 . 10 3 4 11 4 8 Attach 19 | . . . 4 1 6 2 2 4 Detach 4 | . . . 1 . 1 1 1 . Swap 17 | . 5 . 3 . 3 2 3 1 Drop 26 | . 9 1 3 6 2 1 3 1 Fire 215 | . 23 11 49 18 20 22 20 52 Melee 5 | . . . . . 5 . . . Ram . | . . . . . . . . . Kick . | . . . . . . . . . Crush . | . . . . . . . . . Escape Stasis . | . . . . . . . . . Rewire 42 | . . . . . . . . 42 Trap . | . . . . . . . . . Miscellaneous . | . . . . . . . . . Route ------- -11/Junkyard -10/Materials (discovered 4 exits: *Mat x2 / [*Min x2]) -10/Mines -9/Materials (discovered 2 exits: *Min / [*Sto]) -9/Mines -8/Materials -7/Factory (discovered 2 exits: *Fac x2) -6/Factory -6/Extension History --------- Turn | Location | Event 23 | -11/Junkyard | Discovered new exit (range 16) 73 | -11/Junkyard | Entered Materials 259 | -10/Materials | Discovered new exit (range 3) 301 | -10/Materials | Build established: Mutant 490 | -10/Materials | Discovered new exit (range 16) 600 | -10/Materials | Discovered new exit (range 3) 628 | -10/Materials | Discovered new exit (range 15) 733 | -10/Materials | Entered Mines 744 | -10/Mines | Assembled infested the area 749 | -10/Mines | Assisted by a Guerilla fighting off Assembled 842 | -10/Mines | Discovered new exit (range 9) 885 | -10/Mines | Entered Materials 885 | -9/Materials | Evolved 2 slots: Propulsion x1, Utility x1 1062 | -9/Materials | Core integrity fell below 50% 1117 | -9/Materials | Lost 10 parts (1p3n2u4w) 1196 | -9/Materials | Discovered new exit (range 9) 1197 | -9/Materials | Discovered new exit (range 9) 1206 | -9/Materials | Entered Mines 1257 | -9/Mines | Received a Rocket Launcher from a helpful Derelict 1273 | -9/Mines | Learned location of Recycling (-9) 1274 | -9/Mines | Learned Materials security intel 1293 | -9/Mines | Met a Derelict shopkeep closing up shop 1336 | -9/Mines | Discovered new exit (range 10) 1349 | -9/Mines | Core integrity fell below 20% 1403 | -9/Mines | Entered Materials 1403 | -8/Materials | Evolved 2 slots: Propulsion x2 1598 | -8/Materials | Lost 14 parts (1p8n2u3w) 1633 | -8/Materials | Core integrity fell below 50% 1658 | -8/Materials | Discovered new exit (range 7) 1659 | -8/Materials | Core integrity fell below 20% 1661 | -8/Materials | Entered Factory 1661 | -7/Factory | Evolved 2 slots: Propulsion x1, Utility x1 1689 | -7/Factory | Lost 3 parts (2n1w) 1990 | -7/Factory | Discovered new exit (range 15) 2253 | -7/Factory | Discovered new exit (range 8) 2588 | -7/Factory | Entered another Factory area 2588 | -6/Factory | Evolved 2 slots: Utility x1, Weapon x1 2880 | -6/Factory | Build established: Tank 3239 | -6/Factory | Discovered new exit (range 15) 3262 | -6/Factory | Identified exit to Extension 3263 | -6/Factory | Entered Extension 3383 | -6/Extension | Spotted B-75 Beast 3439 | -6/Extension | Build established: Skirmisher 3766 | -6/Extension | Rescued a captive Derelict 3767 | -6/Extension | Rescued a captive Derelict 3850 | -6/Extension | Rescued a captive Derelict 3850 | -6/Extension | Rescued a captive Derelict 3957 | -6/Extension | Rescued a captive Derelict 3958 | -6/Extension | Rescued a captive Derelict 3990 | -6/Extension | Rescued a captive Derelict 3991 | -6/Extension | Rescued a captive Derelict 4117 | -6/Extension | Rescued a captive Derelict 4213 | -6/Extension | Spotted B-75 Beast 4257 | -6/Extension | Destroyed B-75 Beast 4296 | -6/Extension | Lost 11 parts (1p5n2u3w) 4298 | -6/Extension | Core integrity fell below 50% 4329 | -6/Extension | Core integrity fell below 20% 4346 | -6/Extension | Destroyed by H-66 Slayer with Gauss Rifle Last Messages --------------- 04315_ Penetrated by Slug. 04319_ Med. Storage Unit destroyed. 04319_ Angular Momentum Engine destroyed. 04321_ Acquired Imp. Ion Engine. 04321_ Penetrated by Slug. 04321_ R-10 Processor collects Com. Wheel. 04321_ Penetrated by Slug. 04321_ Imp. Medium Treads destroyed. 04322_ Penetrated by Slug. 04325_ Acquired Lgt. Treads. 04325_ Penetrated by Slug. 04325_ Magnetic Acceleration Cannon destroyed. 04327_ Penetrated by Slug. 04328_ Acquired Com. Wheel. 04328_ Penetrated by Slug. 04328_ Imp. Ion Engine destroyed. 04329_ Acquired 15 matter. 04331_ Penetrated by Slug. 04334_ Lgt. Treads destroyed. 04337_ Penetrated by Slug. Map ----- +----------------------------------------------------+ | | | | | | | ?????????????????????????????????????????????????? | | ?????????????????????????????????????????????????? | | ?????????????????????????????????????????????????? | | ?????????????????????????????????????????????????? | | ?????????????????????????????????????????????????? | | ?????????????????????????????????????????????????? | | ????????????###??????????????????????????????????? | | ####????????# #??????????????????????????????????? | | #???????## #??????????????????????????????????? | | #???????#T #??????????????????????????????????? | | ########## ##?????????#???????????????????????? | | ! #????????? ???????????????????????? | | [ ^##### #????????? ???????????????????????? | | #???# #????????? ???????????????????????? | | #???# #????????# #??????????????????????? | | ## #???# #????????# #??????????????????????? | | ?#########???# #????????# #??????????????????????? | | ?????????????# #????????# #??????????????????????? | | ?????????????# #????????# #??????????????????????? | | ?????????????# #????????# #??????????????????????? | | ?????????????# #????????# #??????????????????????? | | ????????###??# #????????# #??????????????????????? | | ??????######## #????????#@#??????????????????????? | | ??????# = # #????????# ###????????????????????? | | ??????# = # ###??????# #T#????????????????????? | | ??????# /= + # #??????# "????????????????????? | | ??????# % %# ##???????# # "????????????????????? | | ??????# = *!#%##???????# # #????????????????????? | | ??????# %%#%#????????# #?#????????????????????? | | ??????########%#????????# #??????????????????????? | | ?????????#=?##!########?# #??????????????????????? | | ??????????####%### ## ### ###????????????????????? | | ?????????###=%%%%% % ""h""#????????????????????? | | ?????????#%#% = " " #????????????????????? | | ?????????###*% %= % #????????????????????? | | ?????????#!#=%% = !% #????????????????????? | | ############*%=!%%] #????????????????????? | | [*%!! ????????????????? | | ! %% %% % ??????????????? | | %=! % %! ??????????????? | | =%! % % % ?????????????? | | [ = ????????????? | | ############ #########????????????? | | ???????????# #????????????????????? | | ???????????# #????????????????????? | | ???????????# #????????????????????? | | ???????????# #????????????????????? | +----------------------------------------------------+ Best States ------------- Heat Dissipation 58 Energy Generation 18 Energy Capacity 300 Matter Stores 300 Matter Capacity 300 Sight Range 16 Robot Scan Range 15 Terrain Scan Density 110 Armor Coverage 225 Evasion (%) 64 Targeting Accuracy 8 Recoil Reduction 3 Offensive Hacking 10 Item Schematics ----------------- None Robot Schematics ------------------ None Fabricated ------------ Nothing Alien Tech Used ----------------- None Achievements -------------- None Challenges ------------ None Game ------ Seed TeslaImpulseKatana Manual? 0 Play Time 00:54:41 Cumulative 30.8 hours Start 2023.12.01 @ 23:21:40 End 2023.12.02 @ 01:30:44 Sessions 5 Manual Loads 0 Difficulty Rogue Special Mode None Game No. 20 Rogue 20 Adventurer 0 Explorer 0 Win Type - Total 0 Types 0/0/0/0/0/0/0/0/0 Lore% 28 Gallery% 33 Achievement% 28 Wizard Run 0 Options --------- ASCII 0 Keyboard 1 Movement Vi Keybinds 0 Fullscreen 1 Font 18/SmallcapsGlow Map View 76x50 Tactical HUD 1 Map Filters NONE Filters NONE Steam 1 RUN: 949695f7-6254-48bf-af22-2f8decf290b7